fUST/lending_fUST_20250903
["ID","MTS","AMOUNT","RATE_DAILY","PERIOD"]
[383354497,1756911063009,-271.99173298,0.00015068,2]
[383354498,1756911063019,-480.0,0.00015068,2]
[383354499,1756911063029,-480.0,0.00015068,2]
[383354500,1756911063042,-1181.74,0.00015068,2]
[383354501,1756911063051,-480.0,0.00015068,2]
[383354502,1756911063061,-1419.53,0.00015068,2]
[383354503,1756911063071,-480.0,0.00015068,2]
[383354504,1756911063081,-480.0,0.00015068,2]
[383354505,1756911063092,-480.0,0.00015068,2]
[383354506,1756911063102,-480.0,0.00015068,2]
[383354507,1756911063112,-480.0,0.00015068,2]
[383354508,1756911063122,-480.0,0.00015068,2]
[383354509,1756911063132,-697.91,0.00015068,2]
[383354511,1756911063142,-480.0,0.00015068,2]
[383354513,1756911063152,-480.0,0.00015068,2]
[383354515,1756911063161,-480.0,0.00015068,2]
[383354517,1756911063171,-289.54057073,0.00015068,2]
[383354519,1756911063180,-500.0,0.00015068,2]
[383354521,1756911063190,-1500.0,0.00015068,2]
[383354523,1756911063200,-500.0,0.00015068,2]
[383354525,1756911063210,-500.0,0.00015068,2]
[383354527,1756911063221,-500.0,0.00015068,2]
[383354529,1756911063231,-501.82497982,0.00015068,2]
[383354531,1756911063242,-1500.0,0.00015068,2]
[383354533,1756911063252,-486.84335023,0.00015068,2]
[383354535,1756911063262,-500.0,0.00015068,2]
[383354537,1756911063272,-500.0,0.00015068,2]
[383354539,1756911063282,-1000.0,0.00015121,2]
[383354541,1756911063292,-720.0,0.00015256,2]
[383354543,1756911063303,-1000.0,0.00015321,2]
[383354545,1756911063312,-480.0,0.0001534,2]
[383354547,1756911063322,-480.0,0.0001534,2]
[383354549,1756911063332,-480.0,0.0001534,2]
[383354551,1756911063347,-688.5,0.0001534,2]
[383354553,1756911063358,-480.0,0.0001534,2]
[383354555,1756911063368,-796.08,0.0001534,2]
[383354557,1756911063378,-480.0,0.0001534,2]
[383354559,1756911063388,-500.0,0.00015342,2]
[383354561,1756911063399,-500.0,0.00015342,2]
[383354563,1756911063409,-500.0,0.00015342,2]
[383354565,1756911063419,-226.9344424,0.00015342,2]
[383354567,1756911063429,-151.0,0.00015342,2]
[383354569,1756911063439,-500.0,0.00015342,2]
[383354571,1756911063449,-151.0,0.00015342,2]
[383354573,1756911063458,-500.0,0.00015342,2]
[383354575,1756911063468,-151.0,0.00015342,2]
[383354577,1756911063478,-151.0,0.00015342,2]
[383354579,1756911063490,-480.0,0.00015342,2]
[383354581,1756911063499,-480.0,0.00015342,2]
[383354583,1756911063508,-480.0,0.00015342,2]
[383354585,1756911063517,-480.0,0.00015342,2]
[383354587,1756911063527,-480.0,0.00015342,2]
[383354589,1756911063536,-285.698482,0.00015342,2]
[383354591,1756911063547,-151.0,0.00015342,2]
[383354593,1756911063556,-151.0,0.00015342,2]
[383354595,1756911063566,-480.0,0.00015342,2]
[383354597,1756911063575,-205.050106,0.00015342,2]
[383354599,1756911063585,-205.050106,0.00015342,2]
[383354601,1756911063595,-480.0,0.00015342,2]
[383354603,1756911063604,-480.0,0.00015342,2]
[383354605,1756911063613,-205.050106,0.00015342,2]
[383354607,1756911063624,-205.050106,0.00015342,2]
[383354609,1756911063634,-151.0,0.00015342,2]
[383354611,1756911063645,-151.0,0.00015342,2]
[383354613,1756911063654,-151.0,0.00015342,2]
[383354615,1756911063664,-151.0,0.00015342,2]
[383354617,1756911063673,-151.7098,0.00015342,2]
[383354619,1756911063683,-165.241984,0.00015342,2]
[383354621,1756911063693,-165.241984,0.00015342,2]
[383354623,1756911063702,-480.0,0.00015342,2]
[383354625,1756911063712,-165.241984,0.00015342,2]
[383354627,1756911063723,-165.241984,0.00015342,2]
[383354629,1756911063732,-371.07296512,0.00015342,2]
[383354631,1756911063743,-480.0,0.00015342,2]
[383354633,1756911063753,-151.0,0.00015342,2]
[383354635,1756911063763,-586.08,0.00015342,2]
[383354637,1756911063772,-480.0,0.00015342,2]
[383354639,1756911063783,-480.0,0.00015342,2]
[383354641,1756911063793,-480.0,0.00015342,2]
[383354643,1756911063803,-164.85,0.00015342,2]
[383354645,1756911063812,-251.943912,0.00015342,2]
[383354647,1756911063822,-251.943912,0.00015342,2]
[383354649,1756911063831,-480.0,0.00015342,2]
[383354651,1756911063841,-251.943912,0.00015342,2]
[383354653,1756911063854,-251.943916,0.00015342,2]
[383354655,1756911063864,-480.0,0.00015342,2]
[383354657,1756911063873,-480.0,0.00015342,2]
[383354659,1756911063884,-480.0,0.00015342,2]
[383354661,1756911063894,-496.07,0.00015342,2]
[383354663,1756911063904,-489.04151198,0.00015342,2]
[383354665,1756911063913,-480.0,0.00015342,2]
[383354667,1756911063923,-480.0,0.00015342,2]
[383354669,1756911063933,-480.0,0.00015342,2]
[383354671,1756911063943,-480.0,0.00015342,2]
[383354673,1756911063953,-480.0,0.00015342,2]
[383354675,1756911063963,-573.82968271,0.00015342,2]
[383354677,1756911063973,-480.0,0.00015342,2]
[383354679,1756911063983,-480.0,0.00015342,2]
[383354681,1756911063994,-480.0,0.00015342,2]
[383354683,1756911064004,-839.94,0.00015342,2]
[383354685,1756911064014,-480.0,0.00015342,2]
[383354687,1756911064023,-480.0,0.00015342,2]
[383354689,1756911064033,-480.0,0.00015342,2]
[383354691,1756911064043,-480.0,0.00015342,2]
[383354693,1756911064052,-480.0,0.00015342,2]
[383354695,1756911064062,-480.0,0.00015342,2]
[383354697,1756911064072,-480.0,0.00015342,2]
[383354699,1756911064082,-480.0,0.00015342,2]
[383354701,1756911064092,-669.02,0.00015342,2]
[383354703,1756911064101,-480.0,0.00015342,2]
[383354706,1756911064111,-480.0,0.00015342,2]
[383354708,1756911064122,-1760.12,0.00015342,2]
[383354710,1756911064132,-480.0,0.00015342,2]
[383354712,1756911064142,-196.72,0.00015342,2]
[383354714,1756911064153,-480.0,0.00015342,2]
[383354716,1756911064163,-480.0,0.00015342,2]
[383354718,1756911064173,-586.85,0.00015342,2]
[383354720,1756911064182,-480.0,0.00015342,2]
[383354722,1756911064193,-480.0,0.00015342,2]
[383354724,1756911064202,-2395.92,0.00015342,2]
[383354726,1756911064212,-480.0,0.00015342,2]
[383354728,1756911064221,-480.0,0.00015342,2]
[383354730,1756911064230,-480.0,0.00015342,2]
[383354732,1756911064241,-789.99,0.00015342,2]
[383354734,1756911064251,-2178.34,0.00015342,2]
[383354736,1756911064260,-480.0,0.00015342,2]
[383354738,1756911064269,-544.22,0.00015342,2]
[383354740,1756911064280,-480.0,0.00015342,2]
[383354742,1756911064291,-480.0,0.00015342,2]
[383354744,1756911064301,-480.0,0.00015342,2]
[383354746,1756911064310,-480.0,0.00015342,2]
[383354748,1756911064320,-480.0,0.00015342,2]
[383354750,1756911064329,-483.36459854,0.00015342,2]
[383354752,1756911064339,-617.69,0.00015342,2]
[383354754,1756911064348,-480.0,0.00015342,2]
[383354756,1756911064359,-480.0,0.00015342,2]
[383354758,1756911064368,-480.0,0.00015342,2]
[383354760,1756911064378,-480.0,0.00015342,2]
[383354762,1756911064387,-480.0,0.00015342,2]
[383354764,1756911064396,-480.0,0.00015342,2]
[383354766,1756911064406,-480.0,0.00015342,2]
[383354768,1756911064415,-480.0,0.00015342,2]
[383354770,1756911064425,-480.0,0.00015342,2]
[383354772,1756911064434,-539.23,0.00015342,2]
[383354774,1756911064443,-480.0,0.00015342,2]
[383354776,1756911064452,-480.0,0.00015342,2]
[383354778,1756911064462,-480.0,0.00015342,2]
[383354780,1756911064471,-480.0,0.00015342,2]
[383354782,1756911064481,-1181.74,0.00015342,2]
[383354784,1756911064493,-171.01,0.00015342,2]
[383354786,1756911064503,-1419.53,0.00015342,2]
[383354788,1756911064512,-518.86994353,0.00015342,2]
[383354790,1756911064522,-480.0,0.00015342,2]
[383354792,1756911064531,-480.0,0.00015342,2]
[383354794,1756911064541,-480.0,0.00015342,2]
[383354796,1756911064550,-697.91,0.00015342,2]
[383354798,1756911064559,-480.0,0.00015342,2]
[383354800,1756911064568,-480.0,0.00015342,2]
[383354802,1756911064577,-480.0,0.00015342,2]
[383354804,1756911064586,-160.0,0.00015388,2]
[383354806,1756911064596,-517.98037952,0.00015414,2]
[383354808,1756911064605,-500.0,0.00015419,2]
[383354810,1756911064614,-388.2840251,0.00015486,2]
[383354812,1756911064624,-388.2840251,0.00015486,2]
[383354814,1756911064633,-694.08985102,0.00015549,2]
[383354816,1756911064643,-480.0,0.00015614,2]
[383354818,1756911064653,-480.0,0.00015614,2]
[383354820,1756911064662,-480.0,0.00015614,2]
[383354822,1756911064671,-688.5,0.00015614,2]
[383354824,1756911064680,-480.0,0.00015614,2]
[383354826,1756911064690,-796.08,0.00015614,2]
[383354828,1756911064699,-480.0,0.00015614,2]
[383354830,1756911064709,-255.0,0.00015616,2]
[383354832,1756911064718,-255.0,0.00015616,2]
[383354834,1756911064727,-151.0,0.00015616,2]
[383354835,1756911064738,-151.0,0.00015616,2]
[383354837,1756911064747,-646.64885996,0.00015616,2]
[383354839,1756911064757,-151.0,0.00015616,2]
[383354842,1756911064767,-500.0,0.00015616,2]
[383354843,1756911064776,-151.0,0.00015616,2]
[383354845,1756911064786,-480.0,0.00015616,2]
[383354847,1756911064796,-480.0,0.00015616,2]
[383354849,1756911064805,-151.0,0.00015616,2]
[383354851,1756911064814,-151.0,0.00015616,2]
[383354853,1756911064823,-153.321534,0.00015616,2]
[383354855,1756911064832,-151.0,0.00015616,2]
[383354857,1756911064842,-186.92635811,0.00015616,2]
[383354859,1756911064855,-151.0,0.00015616,2]
[383354861,1756911064865,-480.0,0.00015616,2]
[383354863,1756911064874,-480.0,0.00015616,2]
[383354865,1756911064884,-480.0,0.00015616,2]
[383354867,1756911064894,-498.33,0.00015616,2]
[383354869,1756911064904,-480.0,0.00015616,2]
[383354872,1756911064913,-480.0,0.00015616,2]
[383354874,1756911064922,-426.29,0.00015616,2]
[383354876,1756911064932,-480.0,0.00015616,2]
[383354877,1756911064942,-480.0,0.00015616,2]
[383354879,1756911064952,-480.0,0.00015616,2]
[383354881,1756911064962,-480.0,0.00015616,2]
[383354883,1756911064972,-480.0,0.00015616,2]
[383354885,1756911064982,-480.0,0.00015616,2]
[383354887,1756911064992,-496.07,0.00015616,2]
[383354889,1756911065002,-540.96,0.00015616,2]
[383354891,1756911065011,-480.0,0.00015616,2]
[383354893,1756911065021,-596.24570973,0.00015616,2]
[383354895,1756911065031,-350.88,0.00015616,2]
[383354897,1756911065040,-480.0,0.00015616,2]
[383354899,1756911065049,-480.0,0.00015616,2]
[383354901,1756911065059,-480.0,0.00015616,2]
[383354903,1756911065069,-219.06,0.00015616,2]
[383354905,1756911065078,-839.94,0.00015616,2]
[383354907,1756911065088,-480.0,0.00015616,2]
[383354909,1756911065097,-480.0,0.00015616,2]
[383354911,1756911065107,-480.0,0.00015616,2]
[383354913,1756911065117,-480.0,0.00015616,2]
[383354915,1756911065127,-480.0,0.00015616,2]
[383354917,1756911065137,-480.0,0.00015616,2]
[383354932,1756911065263,-480.0,0.00015616,2]
[383354934,1756911065273,-480.0,0.00015616,2]
[383354936,1756911065284,-669.02,0.00015616,2]
[383354938,1756911065293,-480.0,0.00015616,2]
[383354940,1756911065305,-480.0,0.00015616,2]
[383354942,1756911065315,-1760.12,0.00015616,2]
[383354944,1756911065325,-480.0,0.00015616,2]
[383354946,1756911065335,-480.0,0.00015616,2]
[383354948,1756911065344,-480.0,0.00015616,2]
[383354950,1756911065354,-586.85,0.00015616,2]
[383354952,1756911065363,-234.42315556,0.00015616,2]
[383354954,1756911065373,-480.0,0.00015616,2]
[383354956,1756911065382,-2395.92,0.00015616,2]
[383354958,1756911065392,-480.0,0.00015616,2]
[383354960,1756911065401,-480.0,0.00015616,2]
[383354962,1756911065411,-480.0,0.00015616,2]
[383354964,1756911065420,-789.99,0.00015616,2]
[383354966,1756911065430,-2178.34,0.00015616,2]
[383354968,1756911065439,-480.0,0.00015616,2]
[383354970,1756911065449,-544.22,0.00015616,2]
[383354972,1756911065460,-480.0,0.00015616,2]
[383354974,1756911065470,-480.0,0.00015616,2]
[383354976,1756911065482,-480.0,0.00015616,2]
[383354978,1756911065492,-441.0,0.00015616,2]
[383354980,1756911065502,-480.0,0.00015616,2]
[383354983,1756911065512,-617.69,0.00015616,2]
[383354985,1756911065522,-480.0,0.00015616,2]
[383354986,1756911065533,-480.0,0.00015616,2]
[383354989,1756911065542,-480.0,0.00015616,2]
[383354990,1756911065551,-480.0,0.00015616,2]
[383354992,1756911065561,-480.0,0.00015616,2]
[383354994,1756911065570,-480.0,0.00015616,2]
[383354996,1756911065580,-480.0,0.00015616,2]
[383354998,1756911065589,-480.0,0.00015616,2]
[383355000,1756911065599,-480.0,0.00015616,2]
[383355002,1756911065609,-539.23,0.00015616,2]
[383355004,1756911065618,-594.30264661,0.00015616,2]
[383355006,1756911065628,-480.0,0.00015616,2]
[383355008,1756911065638,-480.0,0.00015616,2]
[383355010,1756911065647,-165.90347365,0.00015616,2]
[383355012,1756911065657,-1181.74,0.00015616,2]
[383355014,1756911065666,-1419.53,0.00015616,2]
[383355016,1756911065675,-480.0,0.00015616,2]
[383355018,1756911065684,-480.0,0.00015616,2]
[383355020,1756911065694,-480.0,0.00015616,2]
[383355022,1756911065704,-697.91,0.00015616,2]
[383355024,1756911065715,-480.0,0.00015616,2]
[383355026,1756911065726,-480.0,0.00015616,2]
[383355028,1756911065737,-480.0,0.00015616,2]
[383355030,1756911065748,-1233.02130901,0.00015616,2]
[383355032,1756911065757,-1500.0,0.00015668,2]
[383355034,1756911065767,-977.424,0.00015682,2]
[383355036,1756911065777,-2153.0,0.00015682,2]
[383355038,1756911065787,-633.0,0.00015682,2]
[383355040,1756911065797,-150.0,0.00015682,2]
[383355042,1756911065807,-208.688,0.00015682,2]
[383355044,1756911065817,-250.0,0.00015682,2]
[383355046,1756911065827,-12159.23702202,0.00015788,2]
[383355048,1756911065836,-1170.95417744,0.00015835,2]
[383355050,1756911065845,-480.0,0.00015888,2]
[383355052,1756911065859,-480.0,0.00015888,2]
[383355054,1756911065868,-480.0,0.00015888,2]
[383355056,1756911065877,-688.5,0.00015888,2]
[383355058,1756911065887,-480.0,0.00015888,2]
[383355060,1756911065899,-796.08,0.00015888,2]
[383355062,1756911065909,-382.41852063,0.00015888,2]
[383355064,1756911065919,-198.0,0.0001589,2]
[383355066,1756911065931,-151.0,0.0001589,2]
[383355068,1756911065941,-500.0,0.0001589,2]
[383355070,1756911065951,-248.6153923,0.0001589,2]
[383355072,1756911065963,-151.0,0.0001589,2]
[383355074,1756911065973,-480.0,0.0001589,2]
[383355076,1756911065983,-480.0,0.0001589,2]
[383355078,1756911065994,-480.0,0.0001589,2]
[383355080,1756911066004,-480.0,0.0001589,2]
[383355081,1756911066015,-403.13,0.0001589,2]
[383355083,1756911066025,-625.07,0.0001589,2]
[383355086,1756911066035,-480.0,0.0001589,2]
[383355087,1756911066044,-480.0,0.0001589,2]
[383355089,1756911066054,-480.0,0.0001589,2]
[383355091,1756911066064,-480.0,0.0001589,2]
[383355093,1756911066073,-480.0,0.0001589,2]
[383355095,1756911066083,-480.0,0.0001589,2]
[383355097,1756911066092,-595.90439183,0.0001589,2]
[383355099,1756911066102,-496.07,0.0001589,2]
[383355102,1756911066113,-613.92,0.0001589,2]
[383355104,1756911066123,-524.92,0.0001589,2]
[383355106,1756911066133,-472.22,0.0001589,2]
[383355108,1756911066142,-480.0,0.0001589,2]
[383355110,1756911066152,-839.94,0.0001589,2]
[383355112,1756911066162,-480.0,0.0001589,2]
[383355114,1756911066171,-480.0,0.0001589,2]
[383355116,1756911066181,-480.0,0.0001589,2]
[383355118,1756911066191,-480.0,0.0001589,2]
[383355120,1756911066200,-480.0,0.0001589,2]
[383355122,1756911066209,-480.0,0.0001589,2]
[383355124,1756911066219,-480.0,0.0001589,2]
[383355125,1756911066229,-541.52,0.0001589,2]
[383355128,1756911066239,-669.02,0.0001589,2]
[383355129,1756911066249,-480.0,0.0001589,2]
[383355132,1756911066259,-480.0,0.0001589,2]
[383355134,1756911066269,-1760.12,0.0001589,2]
[383355136,1756911066279,-480.0,0.0001589,2]
[383355138,1756911066288,-480.0,0.0001589,2]
[383355140,1756911066299,-480.0,0.0001589,2]
[383355142,1756911066308,-586.85,0.0001589,2]
[383355144,1756911066318,-480.0,0.0001589,2]
[383355146,1756911066328,-2395.92,0.0001589,2]
[383355148,1756911066338,-480.0,0.0001589,2]
[383355150,1756911066347,-480.0,0.0001589,2]
[383355152,1756911066357,-480.0,0.0001589,2]
[383355154,1756911066366,-789.99,0.0001589,2]
[383355155,1756911066376,-2178.34,0.0001589,2]
[383355156,1756911066386,-480.0,0.0001589,2]
[383355157,1756911066396,-544.22,0.0001589,2]
[383355158,1756911066406,-480.0,0.0001589,2]
[383355159,1756911066416,-480.0,0.0001589,2]
[383355160,1756911066426,-480.0,0.0001589,2]
[383355161,1756911066435,-480.0,0.0001589,2]
[383355162,1756911066446,-617.69,0.0001589,2]
[383355163,1756911066458,-480.0,0.0001589,2]
[383355164,1756911066467,-480.0,0.0001589,2]
[383355165,1756911066477,-480.0,0.0001589,2]
[383355166,1756911066487,-480.0,0.0001589,2]
[383355167,1756911066497,-480.0,0.0001589,2]
[383355168,1756911066506,-480.0,0.0001589,2]
[383355169,1756911066516,-480.0,0.0001589,2]
[383355170,1756911066526,-480.0,0.0001589,2]
[383355171,1756911066535,-480.0,0.0001589,2]
[383355172,1756911066545,-539.23,0.0001589,2]
[383355173,1756911066554,-480.0,0.0001589,2]
[383355174,1756911066564,-480.0,0.0001589,2]
[383355175,1756911066573,-1181.74,0.0001589,2]
[383355177,1756911066583,-1419.53,0.0001589,2]
[383355179,1756911066592,-480.0,0.0001589,2]
[383355181,1756911066602,-480.0,0.0001589,2]
[383355183,1756911066612,-480.0,0.0001589,2]
[383355185,1756911066622,-697.91,0.0001589,2]
[383355187,1756911066632,-480.0,0.0001589,2]
[383355189,1756911066641,-480.0,0.0001589,2]
[383355191,1756911066650,-488.16,0.0001589,2]
[383355193,1756911066659,-260.0,0.00015935,2]
[383355195,1756911066669,-250.0,0.00016005,2]
[383355197,1756911066679,-627.28,0.00016162,2]
[383355199,1756911066688,-480.0,0.00016162,2]
[383355201,1756911066698,-480.0,0.00016162,2]
[383355203,1756911066707,-688.5,0.00016162,2]
[383355205,1756911066717,-480.0,0.00016162,2]
[383355207,1756911066727,-796.08,0.00016162,2]
[383355209,1756911066737,-156.63253751,0.00016164,2]
[383355211,1756911066748,-500.0,0.00016164,2]
[383355213,1756911066757,-480.0,0.00016164,2]
[383355215,1756911066767,-238.94,0.00016164,2]
[383355217,1756911066777,-151.0,0.00016164,2]
[383355219,1756911066787,-241.004239,0.00016164,2]
[383355221,1756911066796,-480.0,0.00016164,2]
[383355223,1756911066806,-480.0,0.00016164,2]
[383355225,1756911066815,-151.0,0.00016164,2]
[383355227,1756911066825,-480.0,0.00016164,2]
[383355229,1756911066834,-480.0,0.00016164,2]
[383355231,1756911066845,-480.0,0.00016164,2]
[383355233,1756911066859,-480.0,0.00016164,2]
[383355235,1756911066868,-480.0,0.00016164,2]
[383355237,1756911066878,-561.96,0.00016164,2]
[383355239,1756911066887,-496.07,0.00016164,2]
[383355241,1756911066897,-528.34219528,0.00016164,2]
[383355243,1756911066907,-839.94,0.00016164,2]
[383355245,1756911066917,-480.0,0.00016164,2]
[383355247,1756911066926,-480.0,0.00016164,2]
[383355249,1756911066936,-480.0,0.00016164,2]
[383355251,1756911066946,-387.78,0.00016164,2]
[383355254,1756911066958,-480.0,0.00016164,2]
[383355256,1756911066968,-480.0,0.00016164,2]
[383355258,1756911066979,-669.02,0.00016164,2]
[383355260,1756911066988,-480.0,0.00016164,2]
[383355261,1756911066997,-480.0,0.00016164,2]
[383355264,1756911067008,-1760.12,0.00016164,2]
[383355266,1756911067018,-480.0,0.00016164,2]
[383355268,1756911067027,-480.0,0.00016164,2]
[383355270,1756911067036,-586.85,0.00016164,2]
[383355272,1756911067046,-480.0,0.00016164,2]
[383355274,1756911067056,-2395.92,0.00016164,2]
[383355276,1756911067066,-480.0,0.00016164,2]
[383355278,1756911067076,-480.0,0.00016164,2]
[383355280,1756911067086,-480.0,0.00016164,2]
[383355282,1756911067096,-789.99,0.00016164,2]
[383355284,1756911067106,-2178.34,0.00016164,2]
[383355286,1756911067116,-480.0,0.00016164,2]
[383355288,1756911067126,-544.22,0.00016164,2]
[383355290,1756911067136,-572.62884726,0.00016164,2]
[383355292,1756911067146,-480.0,0.00016164,2]
[383355294,1756911067156,-617.69,0.00016164,2]
[383355296,1756911067166,-480.0,0.00016164,2]
[383355298,1756911067176,-453.41752321,0.00016164,2]
[383355300,1756911067187,-480.0,0.00016164,2]
[383355302,1756911067196,-480.0,0.00016164,2]
[383355304,1756911067206,-480.0,0.00016164,2]
[383355306,1756911067215,-480.0,0.00016164,2]
[383355308,1756911067225,-480.0,0.00016164,2]
[383355310,1756911067235,-539.23,0.00016164,2]
[383355312,1756911067244,-480.0,0.00016164,2]
[383355314,1756911067253,-480.0,0.00016164,2]
[383355316,1756911067263,-1181.74,0.00016164,2]
[383355318,1756911067272,-1419.53,0.00016164,2]
[383355320,1756911067282,-392.64,0.00016164,2]
[383355322,1756911067292,-480.0,0.00016164,2]
[383355324,1756911067301,-480.0,0.00016164,2]
[383355326,1756911067311,-697.91,0.00016164,2]
[383355328,1756911067321,-480.0,0.00016164,2]
[383355330,1756911067331,-480.0,0.00016164,2]
[383355332,1756911067340,-2000.0,0.00016216,2]
[383355334,1756911067350,-500.0,0.0001623,2]
[383355336,1756911067359,-2371.4349954,0.00016365,2]
[383355338,1756911067368,-187.78006525,0.00016381,2]
[383355340,1756911067377,-1768.0,0.00016409,2]
[383355342,1756911067386,-1768.0,0.00016409,2]
[383355344,1756911067396,-1768.0,0.00016409,2]
[383355346,1756911067406,-1768.0,0.00016409,2]
[383355348,1756911067416,-1768.0,0.00016409,2]
[383355351,1756911067425,-1768.0,0.00016409,2]
[383355352,1756911067435,-1768.0,0.00016409,2]
[383355355,1756911067444,-480.0,0.00016436,2]
[383355356,1756911067453,-480.0,0.00016436,2]
[383355358,1756911067462,-688.5,0.00016436,2]
[383355361,1756911067472,-395.13933883,0.00016436,2]
[383355363,1756911067482,-796.08,0.00016436,2]
[383355365,1756911067493,-500.0,0.00016438,2]
[383355367,1756911067503,-500.0,0.00016438,2]
[383355369,1756911067513,-206.1636258,0.00016438,2]
[383355371,1756911067523,-500.0,0.00016438,2]
[383355373,1756911067533,-555.14726956,0.00016438,2]
[383355375,1756911067543,-290.67796688,0.00016438,2]
[383355377,1756911067552,-480.0,0.00016438,2]
[383355379,1756911067562,-337.46,0.00016438,2]
[383355381,1756911067572,-151.0,0.00016438,2]
[383355383,1756911067581,-205.050106,0.00016438,2]
[383355385,1756911067591,-205.050106,0.00016438,2]
[383355387,1756911067601,-424.03,0.00016438,2]
[383355389,1756911067611,-205.050106,0.00016438,2]
[383355391,1756911067620,-205.050098,0.00016438,2]
[383355393,1756911067630,-151.0,0.00016438,2]
[383355395,1756911067639,-151.0,0.00016438,2]
[383355397,1756911067649,-151.0,0.00016438,2]
[383355399,1756911067659,-151.0,0.00016438,2]
[383355401,1756911067668,-165.241984,0.00016438,2]
[383355403,1756911067678,-165.241984,0.00016438,2]
[383355405,1756911067688,-165.241984,0.00016438,2]
[383355407,1756911067697,-165.241989,0.00016438,2]
[383355408,1756911067706,-480.0,0.00016438,2]
[383355410,1756911067716,-480.0,0.00016438,2]
[383355412,1756911067726,-480.0,0.00016438,2]
[383355414,1756911067736,-496.07,0.00016438,2]
[383355416,1756911067748,-839.94,0.00016438,2]
[383355418,1756911067758,-480.0,0.00016438,2]
[383355420,1756911067767,-480.0,0.00016438,2]
[383355422,1756911067777,-480.0,0.00016438,2]
[383355424,1756911067787,-480.0,0.00016438,2]
[383355426,1756911067796,-480.0,0.00016438,2]
[383355428,1756911067806,-669.02,0.00016438,2]
[383355430,1756911067816,-480.0,0.00016438,2]
[383355432,1756911067826,-480.0,0.00016438,2]
[383355434,1756911067836,-1760.12,0.00016438,2]
[383355436,1756911067850,-469.56,0.00016438,2]
[383355438,1756911067859,-480.0,0.00016438,2]
[383355440,1756911067869,-586.85,0.00016438,2]
[383355442,1756911067879,-537.48,0.00016438,2]
[383355444,1756911067891,-2395.92,0.00016438,2]
[383355446,1756911067902,-480.0,0.00016438,2]
[383355448,1756911067913,-480.0,0.00016438,2]
[383355450,1756911067924,-480.0,0.00016438,2]
[383355453,1756911067934,-789.99,0.00016438,2]
[383355454,1756911067944,-2178.34,0.00016438,2]
[383355456,1756911067955,-480.0,0.00016438,2]
[383355459,1756911067965,-544.22,0.00016438,2]
[383355461,1756911067975,-480.0,0.00016438,2]
[383355463,1756911067985,-617.69,0.00016438,2]
[383355465,1756911068000,-480.0,0.00016438,2]
[383355466,1756911068010,-480.0,0.00016438,2]
[383355469,1756911068020,-480.0,0.00016438,2]
[383355471,1756911068030,-480.0,0.00016438,2]
[383355472,1756911068040,-480.0,0.00016438,2]
[383355474,1756911068049,-480.0,0.00016438,2]
[383355476,1756911068058,-539.23,0.00016438,2]